bitfinex/quotes_BTCUSD_20251012
["timestamp","ask_amount","ask_price","bid_price","bid_amount"]
[1760269279323,0.60939729,112240.0,112230.0,0.56958689]
[1760269279674,0.60939729,112240.0,112230.0,0.56758689]
[1760269280099,0.60939729,112240.0,112230.0,0.56858689]
[1760269280302,0.60939729,112240.0,112230.0,0.39038142]
[1760269280479,0.60939729,112240.0,112230.0,0.12168142]
[1760269280691,0.60939729,112240.0,112230.0,0.12068142]
[1760269281053,0.60939729,112240.0,112230.0,0.11968142]
[1760269281364,0.17820547,112230.0,112220.0,0.03848399]
[1760269281562,0.17820547,112230.0,112220.0,0.12801351]
[1760269282345,0.17820547,112230.0,112220.0,0.15816541]
[1760269283063,0.60939729,112240.0,112220.0,0.33738676]
[1760269283260,0.17820547,112230.0,112220.0,0.33738676]
[1760269283814,0.17820547,112230.0,112220.0,0.33638676]
[1760269284213,0.17820547,112230.0,112220.0,0.33738676]
[1760269285272,0.17820547,112230.0,112220.0,0.33838676]
[1760269286273,0.17820547,112230.0,112220.0,0.33738676]
[1760269286656,0.17820547,112230.0,112220.0,0.33838676]
[1760269292995,0.17820547,112230.0,112220.0,0.16016541]
[1760269293337,0.17820547,112230.0,112220.0,0.33838676]
[1760269296286,0.59844213,112240.0,112220.0,0.33838676]
[1760269296768,0.17820547,112230.0,112220.0,0.33838676]
[1760269297624,0.17820547,112230.0,112220.0,0.33738676]
[1760269298062,0.17820547,112230.0,112220.0,0.33638676]
[1760269298502,0.17820547,112230.0,112220.0,0.33838676]
[1760269298680,0.42025254,112240.0,112230.0,0.23335736]
[1760269298896,0.42025254,112240.0,112230.0,0.14468141]
[1760269299017,0.42025254,112240.0,112230.0,0.29788689]
[1760269300051,0.42025254,112240.0,112230.0,0.29888689]
[1760269314687,0.42025254,112240.0,112230.0,0.32388688]
[1760269315109,0.42025254,112240.0,112230.0,0.33632689]
[1760269318256,0.42025254,112240.0,112230.0,0.67632689]
[1760269320725,0.42025254,112240.0,112230.0,1.07532689]
[1760269321048,0.42025254,112240.0,112230.0,1.07632689]
[1760269321256,0.42025254,112240.0,112230.0,1.07732689]
[1760269321601,0.42025254,112240.0,112230.0,0.67732689]
[1760269327173,0.42025254,112240.0,112230.0,0.69732689]
[1760269328052,0.42025254,112240.0,112230.0,0.35732689]
[1760269328253,0.42025254,112240.0,112230.0,0.62602689]
[1760269328581,0.59844213,112240.0,112230.0,0.62602689]
[1760269332663,0.59844213,112240.0,112230.0,0.44782142]
[1760269333069,0.59844213,112240.0,112230.0,0.62602689]
[1760269334663,0.59844213,112240.0,112230.0,0.44782142]
[1760269335187,0.64275213,112240.0,112230.0,0.3582919]
[1760269337255,0.64275213,112240.0,112230.0,0.0895919]
[1760269338049,0.68251213,112240.0,112230.0,0.0895919]
[1760269338247,0.64275213,112240.0,112230.0,0.0895919]
[1760269338893,0.59844213,112240.0,112230.0,0.0895919]
[1760269339664,0.59844213,112240.0,112230.0,0.0885919]
[1760269340025,0.59844213,112240.0,112230.0,0.0875919]
[1760269345851,0.62465213,112240.0,112230.0,0.0875919]
[1760269346402,0.68251213,112240.0,112230.0,0.0875919]
[1760269346541,0.64275213,112240.0,112230.0,0.0875919]
[1760269347867,0.61654213,112240.0,112230.0,0.0875919]
[1760269348048,0.64275213,112240.0,112230.0,0.0875919]
[1760269349589,0.68251213,112240.0,112230.0,0.0875919]
[1760269351896,0.64275213,112240.0,112230.0,0.0875919]
[1760269352518,0.59844213,112240.0,112230.0,0.0875919]
[1760269356173,0.35013837,112240.0,112230.0,0.0875919]
[1760269357608,0.37460837,112240.0,112230.0,0.0875919]
[1760269358217,0.39359837,112240.0,112230.0,0.0875919]
[1760269358843,0.43045837,112240.0,112230.0,0.0875919]
[1760269359247,0.39359837,112240.0,112230.0,0.0875919]
[1760269362398,0.43045837,112240.0,112230.0,0.0875919]
[1760269362609,0.39359837,112240.0,112230.0,0.0875919]
[1760269366476,0.42039708,112240.0,112230.0,0.0875919]
[1760269367754,0.37693708,112240.0,112230.0,0.0875919]
[1760269368129,0.40246708,112240.0,112230.0,0.0875919]
[1760269372174,0.45983708,112240.0,112230.0,0.0875919]
[1760269373350,0.45983708,112240.0,112230.0,0.05744]
[1760269373351,0.79983708,112240.0,112230.0,0.05744]
[1760269373550,0.59292602,112240.0,112230.0,0.05744]
[1760269380270,5.67186713,112240.0,112230.0,0.05744]
[1760269380809,5.68583961,112240.0,112230.0,0.05744]
[1760269381016,5.67186713,112240.0,112230.0,0.05744]
[1760269381516,5.59292602,112240.0,112230.0,0.05744]
[1760269383483,0.59292602,112240.0,112230.0,0.05744]
[1760269384021,0.60689887,112240.0,112230.0,0.05744]
[1760269387146,0.60689887,112240.0,112220.0,0.00100399]
[1760269387147,0.51820547,112230.0,112220.0,0.00100399]
[1760269387384,0.53773547,112230.0,112220.0,0.00100399]
[1760269387553,0.56261547,112230.0,112220.0,0.00100399]
[1760269387737,0.60072547,112230.0,112220.0,0.00100399]
[1760269388077,0.62753118,112230.0,112220.0,0.00100399]
[1760269393264,5.70780231,112230.0,112220.0,0.00100399]
[1760269393465,0.51822135,112220.0,112210.0,0.03748]
[1760269393665,0.53775135,112220.0,112210.0,0.03753004]
[1760269393881,0.60074135,112220.0,112210.0,0.03753004]
[1760269394091,0.60074135,112220.0,112210.0,0.03868833]
[1760269394290,0.62754849,112220.0,112210.0,0.03868833]
[1760269399548,0.58943849,112220.0,112210.0,0.03868833]
[1760269399753,0.54502849,112220.0,112210.0,0.06884023]
[1760269399975,0.58943849,112220.0,112210.0,0.06884023]
[1760269400191,0.62754849,112220.0,112210.0,0.06884023]
[1760269401657,0.58943849,112220.0,112210.0,0.06884023]
[1760269402642,0.62754849,112220.0,112210.0,0.06884023]
[1760269402840,0.02680714,112220.0,112210.0,0.06884023]
[1760269403039,0.17858042,112230.0,112220.0,0.0301519]
[1760269403264,0.205381,112230.0,112220.0,0.0301519]
[1760269403462,0.205381,112230.0,112220.0,0.03073096]
[1760269404046,0.249791,112230.0,112220.0,0.03073096]
[1760269404653,0.19782313,112240.0,112220.0,0.03073096]
[1760269404825,0.17820547,112230.0,112220.0,0.03073096]
[1760269410924,0.20500605,112230.0,112220.0,0.03073096]
[1760269411148,0.20500605,112230.0,112220.0,0.20895231]
[1760269411327,0.02680058,112230.0,112220.0,0.20895231]
[1760269411477,0.17820547,112230.0,112220.0,0.20895231]
[1760269411821,0.20965227,112240.0,112220.0,0.20895231]
[1760269412533,0.20965227,112240.0,112230.0,0.20835737]
[1760269412962,0.21023128,112240.0,112230.0,0.20835737]
[1760269417143,0.21023128,112240.0,112230.0,0.24583737]
[1760269421117,0.25431128,112240.0,112230.0,0.0676319]
[1760269421866,0.25431128,112240.0,112230.0,0.24583737]
[1760269422085,0.22848128,112240.0,112230.0,0.24583737]
[1760269422835,0.21023128,112240.0,112230.0,0.24583737]
[1760269423673,0.21022633,112240.0,112230.0,0.24583737]
[1760269425402,0.20556746,112240.0,112230.0,0.24583737]
[1760269426334,0.1787686,112240.0,112230.0,0.24583737]
[1760269432098,0.00057901,112240.0,112230.0,0.24583737]
[1760269433753,0.1787686,112240.0,112230.0,0.24583737]
[1760269438926,0.00057901,112240.0,112230.0,0.24583737]
[1760269439105,0.1787686,112240.0,112230.0,0.24583737]
[1760269445412,0.1787686,112240.0,112230.0,0.0676319]
[1760269446466,0.1787686,112240.0,112230.0,0.24583737]
[1760269446733,0.1787686,112240.0,112230.0,0.0676319]
[1760269447164,0.2596686,112240.0,112230.0,0.0676319]
[1760269448613,0.5996686,112240.0,112230.0,0.03748]
[1760269450811,0.62647086,112240.0,112230.0,0.03748]
[1760269459959,0.41198675,112240.0,112230.0,0.03748]
[1760269460153,0.61472634,112240.0,112230.0,0.03748]
[1760269463462,0.24895185,112240.0,112230.0,0.03748]
[1760269465349,0.28589185,112240.0,112230.0,0.03748]
[1760269467430,0.62589185,112240.0,112230.0,0.03748]
[1760269468218,5.70815073,112240.0,112230.0,0.03748]
[1760269468622,5.62589185,112240.0,112230.0,0.03748]
[1760269469759,5.63055133,112240.0,112230.0,0.03748]
[1760269471341,5.67820547,112230.0,112220.0,0.00057906]
[1760269471549,5.19761547,112230.0,112220.0,0.00057906]
[1760269471747,5.22216547,112230.0,112220.0,0.00057906]
[1760269471954,5.25910547,112230.0,112220.0,0.00057906]
[1760269472147,0.28591216,112230.0,112220.0,0.00057906]
[1760269480174,0.28591216,112230.0,112220.0,1e-08]
[1760269485197,5.28591216,112230.0,112220.0,1e-08]
[1760269487633,0.28591216,112230.0,112220.0,1e-08]
[1760269492171,0.37445749,112230.0,112220.0,1e-08]
[1760269492794,0.28591216,112230.0,112220.0,1e-08]
[1760269503543,5.28591216,112230.0,112220.0,1e-08]
[1760269503670,5.30515994,112230.0,112220.0,1e-08]
[1760269508975,5.64515994,112230.0,112220.0,1e-08]
[1760269510868,5.68594787,112230.0,112220.0,1e-08]
[1760269511009,5.66921966,112230.0,112220.0,1e-08]
[1760269511210,5.64515994,112230.0,112220.0,1e-08]
[1760269512181,5.65913559,112230.0,112220.0,1e-08]
[1760269512480,5.64515994,112230.0,112220.0,1e-08]
[1760269512689,5.65913542,112230.0,112220.0,1e-08]
[1760269515662,5.64515994,112230.0,112220.0,1e-08]
[1760269516177,0.64515994,112230.0,112220.0,1e-08]
[1760269516527,0.65913511,112230.0,112220.0,1e-08]
[1760269526920,5.68319483,112230.0,112220.0,1e-08]
[1760269527143,5.64515994,112230.0,112220.0,1e-08]
[1760269528017,5.81388443,112230.0,112220.0,1e-08]
[1760269528224,5.71388444,112230.0,112220.0,1e-08]
[1760269528422,5.81388443,112230.0,112220.0,1e-08]
[1760269528796,5.90260377,112230.0,112220.0,1e-08]
[1760269529249,5.8746619,112230.0,112220.0,1e-08]
[1760269529825,5.85793899,112230.0,112220.0,1e-08]
[1760269530046,5.88863594,112230.0,112220.0,1e-08]
[1760269530260,5.7999166,112230.0,112220.0,1e-08]
[1760269530482,5.69991661,112230.0,112220.0,1e-08]
[1760269531028,5.7999166,112230.0,112220.0,1e-08]
[1760269531644,5.53326526,112230.0,112220.0,1e-08]
[1760269531837,5.74947073,112230.0,112220.0,1e-08]
[1760269531995,5.73275009,112230.0,112220.0,1e-08]
[1760269533331,5.74946886,112230.0,112220.0,1e-08]
[1760269533533,5.73275009,112230.0,112220.0,1e-08]
[1760269533734,5.74946886,112230.0,112220.0,1e-08]
[1760269535284,5.64946887,112230.0,112220.0,1e-08]
[1760269535580,5.74946886,112230.0,112220.0,1e-08]
[1760269536316,5.70146595,112230.0,112220.0,1e-08]
[1760269536530,5.80146594,112230.0,112220.0,1e-08]
[1760269537189,5.74946886,112230.0,112220.0,1e-08]
[1760269539288,5.64946887,112230.0,112220.0,1e-08]
[1760269539514,5.74946886,112230.0,112220.0,1e-08]
[1760269539840,5.64946887,112230.0,112220.0,1e-08]
[1760269540053,5.74946886,112230.0,112220.0,1e-08]
[1760269541756,5.77352858,112230.0,112220.0,1e-08]
[1760269541999,5.67352859,112230.0,112220.0,1e-08]
[1760269547966,5.76224793,112230.0,112220.0,1e-08]
[1760269548671,5.91620588,112230.0,112220.0,1e-08]
[1760269550446,5.86224792,112230.0,112220.0,1e-08]
[1760269551342,5.86324792,112230.0,112220.0,1e-08]
[1760269552464,0.86324792,112230.0,112220.0,1e-08]
[1760269552672,5.33452859,112230.0,112220.0,1e-08]
[1760269552852,0.2937501,112230.0,112220.0,1e-08]
[1760269553056,0.26052601,112230.0,112220.0,1e-08]
[1760269553901,0.60052601,112230.0,112220.0,1e-08]
[1760269554262,0.59952601,112230.0,112220.0,1e-08]
[1760269554455,0.60052601,112230.0,112220.0,1e-08]
[1760269554654,0.60152601,112230.0,112220.0,1e-08]
[1760269562372,0.68330199,112230.0,112220.0,1e-08]
[1760269562573,5.68330199,112230.0,112220.0,1e-08]
[1760269564714,5.60152601,112230.0,112220.0,1e-08]
[1760269567212,5.61550169,112230.0,112220.0,1e-08]
[1760269567896,5.63473317,112230.0,112220.0,1e-08]
[1760269569095,5.66267504,112230.0,112220.0,1e-08]
[1760269569892,5.63473317,112230.0,112220.0,1e-08]
[1760269571557,5.62075749,112230.0,112220.0,1e-08]
[1760269573810,5.70947683,112230.0,112220.0,1e-08]
[1760269575524,5.62075749,112230.0,112220.0,1e-08]
[1760269580189,5.63745775,112230.0,112220.0,1e-08]
[1760269582908,5.6649075,112230.0,112220.0,1e-08]
[1760269583109,0.68896722,112230.0,112220.0,1e-08]
[1760269583264,5.68896722,112230.0,112220.0,1e-08]
[1760269583461,5.77768656,112230.0,112220.0,1e-08]
[1760269583911,5.54409737,112230.0,112220.0,1e-08]
[1760269584114,0.69824312,112230.0,112220.0,1e-08]
[1760269584276,5.63633536,112230.0,112220.0,1e-08]
[1760269585285,5.78539506,112230.0,112220.0,1e-08]
[1760269585865,0.518269,112190.0,112180.0,1e-08]
[1760269586062,0.531839,112190.0,112180.0,5.009e-05]
[1760269586215,0.591599,112190.0,112180.0,5.009e-05]
[1760269586420,0.591599,112190.0,112180.0,0.00332171]
[1760269586617,5.60548609,112190.0,112180.0,0.00332171]
[1760269587037,5.63230109,112190.0,112180.0,0.00332171]
[1760269589864,5.64628096,112190.0,112180.0,0.00332171]
[1760269590325,5.64628096,112190.0,112180.0,1e-08]
[1760269594790,5.63230109,112190.0,112180.0,1e-08]
[1760269595223,0.63230109,112190.0,112180.0,1e-08]
[1760269597794,0.64628124,112190.0,112180.0,1e-08]
[1760269598282,0.61107124,112190.0,112180.0,0.02378001]
[1760269598437,0.21897109,112190.0,112180.0,0.07833001]
[1760269598834,0.55897109,112190.0,112180.0,0.07833001]
[1760269599224,0.33423007,112190.0,112180.0,0.2566149]
[1760269599421,0.51249907,112190.0,112180.0,0.07833001]
[1760269599622,0.53931156,112190.0,112180.0,0.07833001]
[1760269600220,0.20508149,112190.0,112180.0,0.2867668]
[1760269601129,0.20508149,112190.0,112180.0,0.10848191]
[1760269606909,0.178269,112190.0,112180.0,0.10848191]
[1760269608629,0.178269,112190.0,112180.0,0.14596191]
[1760269611618,0.178269,112190.0,112180.0,0.3242468]
[1760269612837,0.178269,112190.0,112180.0,0.14596191]
[1760269613067,0.178269,112190.0,112180.0,0.16379039]
[1760269613345,0.178269,112190.0,112180.0,0.34207528]
[1760269613592,0.178269,112190.0,112180.0,0.3242468]
[1760269620538,0.18735738,112200.0,112180.0,0.3242468]
[1760269620740,0.52735738,112200.0,112190.0,0.01803]
[1760269620915,0.52735738,112200.0,112190.0,0.08225]
[1760269621353,0.34,112200.0,112190.0,0.2906709]
[1760269621510,0.51825311,112200.0,112190.0,0.2906709]
[1760269621693,0.17825311,112200.0,112190.0,0.1124019]
[1760269622321,0.18725902,112200.0,112190.0,0.1124019]
[1760269622919,0.22483902,112200.0,112190.0,0.04346]
[1760269623125,0.20143902,112200.0,112190.0,0.08225]
[1760269623341,0.18725902,112200.0,112190.0,0.08225]
[1760269627081,0.21065902,112200.0,112190.0,0.04346]
[1760269627298,0.18725902,112200.0,112190.0,0.0797]
[1760269629562,0.518269,112190.0,112180.0,0.03748]
[1760269629759,0.591169,112190.0,112180.0,0.03748]
[1760269630394,0.531529,112190.0,112180.0,0.1151]
[1760269630755,0.518269,112190.0,112180.0,0.1151]
[1760269631770,0.53345383,112200.0,112180.0,0.34136527]
[1760269631986,0.178269,112190.0,112180.0,0.28729679]
[1760269632578,0.52291423,112200.0,112190.0,0.0301519]
[1760269632912,0.52291423,112200.0,112190.0,0.1077719]
[1760269633118,0.52291423,112200.0,112190.0,0.2860409]
[1760269633354,0.18291423,112200.0,112190.0,0.2860409]
[1760269633559,0.17825311,112200.0,112190.0,0.2860409]
[1760269640142,0.1962972,112210.0,112190.0,0.2860409]
[1760269640342,0.17825311,112200.0,112190.0,0.2498009]
[1760269640545,0.00153369,112200.0,112190.0,0.2498009]
[1760269640750,0.1797868,112200.0,112190.0,0.2498009]
[1760269640996,0.1797868,112200.0,112190.0,0.2860409]
[1760269641188,0.1797868,112200.0,112190.0,0.28541953]
[1760269642214,0.1797868,112200.0,112190.0,0.32289953]
[1760269646508,0.00153369,112200.0,112190.0,0.32289953]
[1760269647140,0.1797868,112200.0,112190.0,0.32289953]
[1760269647586,0.00153369,112200.0,112190.0,0.32289953]
[1760269649261,0.00153369,112200.0,112190.0,0.32389953]
[1760269649458,0.00153369,112200.0,112190.0,0.32489953]
[1760269657222,0.00153369,112200.0,112190.0,0.41442905]
[1760269659438,0.00153369,112200.0,112190.0,0.75442905]
[1760269660282,0.00153369,112200.0,112190.0,0.75342905]
[1760269660483,0.00153369,112200.0,112190.0,0.75242905]
[1760269660688,0.00153369,112200.0,112190.0,0.75342905]
[1760269661696,0.00153369,112200.0,112190.0,1.1812303]
[1760269662040,0.00153369,112200.0,112190.0,1.1802303]
[1760269662467,0.07162362,112230.0,112220.0,0.17822135]
[1760269662672,0.07162362,112230.0,112220.0,0.25770135]
[1760269662873,0.17819048,112240.0,112230.0,0.20835737]
[1760269663075,0.17819048,112240.0,112230.0,0.22711737]
[1760269663357,0.17819048,112240.0,112230.0,0.0740619]
[1760269663563,0.69003888,112250.0,112230.0,0.0740619]
[1760269663780,0.21637048,112240.0,112230.0,0.04396027]
[1760269663977,0.21637048,112240.0,112230.0,0.07953027]
[1760269664528,0.19145048,112240.0,112230.0,0.07953027]
[1760269666086,0.19145048,112240.0,112230.0,0.11701027]
[1760269666775,0.25191048,112240.0,112230.0,0.03753027]
[1760269669965,0.2118595,112240.0,112230.0,0.03753027]
[1760269670395,0.21417582,112240.0,112230.0,0.03753027]
[1760269671572,0.1806368,112240.0,112230.0,0.06176027]
[1760269671793,0.1806368,112240.0,112230.0,0.03753027]
[1760269671992,0.1807168,112240.0,112230.0,0.03753027]
[1760269675603,0.19468974,112240.0,112230.0,0.03753027]
[1760269675823,0.19460974,112240.0,112230.0,0.03753027]
[1760269680465,0.19468974,112240.0,112230.0,0.03753027]
[1760269685058,0.19460974,112240.0,112230.0,0.03753027]
[1760269685501,0.19496974,112240.0,112230.0,0.03753027]
[1760269688051,0.22177209,112240.0,112230.0,0.03753027]
[1760269688837,0.22141209,112240.0,112230.0,0.03753027]
[1760269689038,0.19460974,112240.0,112230.0,0.03753027]
[1760269689402,0.22141209,112240.0,112230.0,0.03753027]
[1760269690904,0.22177209,112240.0,112230.0,0.03753027]
[1760269692290,0.22141209,112240.0,112230.0,0.03753027]
[1760269694595,0.22177209,112240.0,112230.0,0.03753027]
[1760269695465,0.22141209,112240.0,112230.0,0.03753027]
[1760269697904,0.22177209,112240.0,112230.0,0.03753027]
[1760269700395,0.22128209,112240.0,112230.0,0.11945027]
[1760269700638,0.5205068,112240.0,112230.0,0.11945027]
[1760269706849,0.5205068,112240.0,112230.0,0.13727081]
[1760269714383,0.5205068,112240.0,112230.0,0.08138027]
[1760269714529,0.5205068,112240.0,112230.0,0.11945027]
[1760269722061,0.30378665,112240.0,112230.0,0.11945027]
[1760269722280,0.31412402,112250.0,112230.0,0.11945027]
[1760269722477,0.17819048,112240.0,112230.0,0.08197027]
[1760269722636,0.17819048,112240.0,112230.0,0.11945027]
[1760269723877,0.17819048,112240.0,112230.0,0.08138027]
[1760269724273,0.17819048,112240.0,112230.0,0.11659027]
[1760269726282,5.51819048,112240.0,112230.0,0.03753027]
[1760269726858,5.54499461,112240.0,112230.0,0.03753027]
[1760269733649,5.56422863,112240.0,112230.0,0.03753027]
[1760269735358,0.17823723,112210.0,112200.0,0.0859719]
[1760269735564,0.17828744,112210.0,112200.0,0.1108119]
[1760269735990,0.17828744,112210.0,112200.0,0.11350362]
[1760269736309,0.20509394,112210.0,112200.0,0.11350362]
[1760269736990,0.20509394,112210.0,112200.0,0.04017172]
[1760269737595,0.20509394,112210.0,112200.0,0.08251172]
[1760269737747,0.20509394,112210.0,112200.0,0.11957172]
[1760269741460,0.20509394,112210.0,112200.0,0.08251172]
[1760269741664,0.20509394,112210.0,112200.0,0.04017172]
[1760269741928,0.20509394,112210.0,112200.0,0.06459172]
[1760269743590,0.20509394,112210.0,112200.0,0.11957172]
[1760269744644,0.20509394,112210.0,112200.0,0.13739703]
[1760269745540,0.02685671,112210.0,112200.0,0.34580204]
[1760269745804,0.20509394,112210.0,112200.0,0.32797673]
[1760269746675,0.02685671,112210.0,112200.0,0.32797673]
[1760269746875,0.20509394,112210.0,112200.0,0.32797673]
[1760269747089,0.02685671,112210.0,112200.0,0.32797673]
[1760269747292,0.20509394,112210.0,112200.0,0.32797673]
[1760269748184,0.02685671,112210.0,112200.0,0.32797673]
[1760269748884,0.20509394,112210.0,112200.0,0.32797673]
[1760269749807,0.02685671,112210.0,112200.0,0.32797673]
[1760269750394,5.021e-05,112210.0,112200.0,0.32797673]
[1760269751808,5.021e-05,112210.0,112200.0,0.32897673]
[1760269752441,5.021e-05,112210.0,112200.0,0.41950625]
[1760269756362,0.17828744,112210.0,112200.0,0.15172362]
[1760269757172,0.17828744,112210.0,112200.0,0.32997673]
[1760269757373,0.17828744,112210.0,112200.0,0.32897673]
[1760269757609,0.17828744,112210.0,112200.0,0.15072362]
[1760269758146,0.17828744,112210.0,112200.0,0.14972362]
[1760269758756,0.17828744,112210.0,112200.0,0.11957172]
[1760269759253,0.20509372,112210.0,112200.0,0.31565014]
[1760269759461,0.02685649,112210.0,112200.0,0.32797673]
[1760269760393,0.20509372,112210.0,112200.0,0.32797673]
[1760269762739,0.02685649,112210.0,112200.0,0.32797673]
[1760269762942,0.20509372,112210.0,112200.0,0.32797673]
[1760269765383,0.02685649,112210.0,112200.0,0.32797673]
[1760269765764,0.20509372,112210.0,112200.0,0.32797673]
[1760269768467,0.20509372,112210.0,112200.0,0.14972362]
[1760269768886,0.20509372,112210.0,112200.0,0.32797673]
[1760269769985,0.20509372,112210.0,112200.0,0.07032362]
[1760269770278,0.54509372,112210.0,112200.0,0.04017172]
[1760269774524,0.34,112210.0,112200.0,0.04017172]
[1760269774730,0.51823723,112210.0,112200.0,0.04017172]
[1760269774933,0.545045,112210.0,112200.0,0.04017172]
[1760269778031,0.545045,112210.0,112200.0,0.08065172]
[1760269778275,0.545045,112210.0,112200.0,0.11484172]
[1760269781136,0.545045,112210.0,112200.0,0.08065172]
[1760269787467,0.51823723,112210.0,112200.0,0.08065172]
[1760269787996,0.51823723,112210.0,112200.0,0.06322172]
[1760269788403,0.51823723,112210.0,112200.0,0.08089172]
[1760269792184,0.51823723,112210.0,112200.0,0.04017172]
[1760269793229,0.54504806,112210.0,112200.0,0.04017172]
[1760269794472,0.54970869,112210.0,112200.0,0.04017172]
[1760269796220,0.5636855,112210.0,112200.0,0.04017172]
[1760269799982,0.2236855,112210.0,112200.0,0.04017172]
[1760269801316,0.2236855,112210.0,112200.0,0.00269172]
[1760269801737,0.2236855,112210.0,112200.0,0.02574172]
[1760269802118,0.2236855,112210.0,112200.0,0.00269172]
[1760269802119,0.5636855,112210.0,112200.0,0.00269172]
[1760269803659,0.5636855,112210.0,112200.0,0.04341172]
[1760269803886,0.20970869,112210.0,112200.0,0.07911172]
[1760269804879,0.18289786,112210.0,112200.0,0.07911172]
[1760269805319,0.20970565,112210.0,112200.0,0.07911172]
[1760269805462,0.18289786,112210.0,112200.0,0.07911172]
[1760269806082,0.18289786,112210.0,112200.0,0.11659172]
[1760269807587,0.18289786,112210.0,112200.0,0.08089172]
[1760269807783,0.20970565,112210.0,112200.0,0.04017172]
[1760269809118,0.54970565,112210.0,112200.0,0.06411172]
[1760269813078,0.54970565,112210.0,112200.0,0.04017172]
[1760269814043,0.54970565,112210.0,112200.0,0.08257172]
[1760269814247,0.54970565,112210.0,112200.0,0.04017172]
[1760269815919,0.54970565,112210.0,112200.0,0.06411172]
[1760269819244,0.54970565,112210.0,112200.0,0.08257172]
[1760269820918,0.54970565,112210.0,112200.0,0.11705172]
[1760269822563,0.18712066,112230.0,112210.0,0.20838913]
[1760269822715,0.18712066,112230.0,112220.0,0.09470213]
[1760269822910,0.52712066,112230.0,112220.0,0.0424]
[1760269823136,0.52712066,112230.0,112220.0,0.04393308]
[1760269823339,0.18712066,112230.0,112220.0,0.04393308]
[1760269823540,0.52712066,112230.0,112220.0,0.04393308]
[1760269824453,0.52712066,112230.0,112220.0,0.07841308]
[1760269826689,0.60033205,112230.0,112220.0,0.00153308]
[1760269827404,0.55392534,112230.0,112220.0,0.00153308]
[1760269830758,0.55858525,112230.0,112220.0,0.00153308]
[1760269830962,0.55858525,112230.0,112220.0,0.04393308]
[1760269831267,0.55858525,112230.0,112220.0,0.00153308]
[1760269834236,0.33738636,112230.0,112220.0,0.00153308]
[1760269834571,0.52450702,112230.0,112220.0,0.00153308]
[1760269844203,0.59477677,112230.0,112220.0,0.00153308]
[1760269844585,0.52450702,112230.0,112220.0,0.00153308]
[1760269845580,0.53848243,112230.0,112220.0,0.00153308]
[1760269846322,5.53848243,112230.0,112220.0,1e-08]
[1760269847563,0.51825311,112200.0,112190.0,0.03748]
[1760269847718,0.51825311,112200.0,112190.0,0.03756968]
[1760269848331,0.54506423,112200.0,112190.0,0.03756968]
[1760269848534,0.54506423,112200.0,112190.0,0.06055968]
[1760269848739,0.54506423,112200.0,112190.0,0.03756968]
[1760269853120,0.54506423,112200.0,112190.0,0.03930759]
[1760269853324,0.54506423,112200.0,112190.0,0.08065759]
[1760269854183,0.54506423,112200.0,112190.0,0.03930759]
[1760269862412,0.54506423,112200.0,112190.0,0.06229759]
[1760269863292,0.54506423,112200.0,112190.0,0.03930759]
[1760269864176,0.54506423,112200.0,112190.0,0.06229759]
[1760269864571,0.54506423,112200.0,112190.0,0.02481759]
[1760269864777,0.54506423,112200.0,112190.0,0.07658759]
[1760269865339,0.54506423,112200.0,112190.0,0.04317759]
[1760269865541,0.55833623,112200.0,112190.0,0.00182759]
[1760269865744,0.55833623,112200.0,112190.0,0.02481759]
[1760269866149,0.54506423,112200.0,112190.0,0.02481759]
[1760269866348,0.54506423,112200.0,112190.0,0.00182759]
[1760269868332,0.55904165,112200.0,112190.0,0.00182759]
[1760269869319,0.55904165,112200.0,112190.0,0.02543759]
[1760269873234,0.55904165,112200.0,112190.0,0.04358759]
[1760269874263,0.63277098,112200.0,112190.0,0.00182759]
[1760269874659,0.55904165,112200.0,112190.0,0.00182759]
[1760269876840,0.55904165,112200.0,112190.0,0.04358759]
[1760269877318,0.55904165,112200.0,112190.0,0.00182759]
[1760269897539,0.55904165,112200.0,112190.0,0.02399759]
[1760269898747,0.55904165,112200.0,112190.0,0.00182759]
[1760269901181,0.5637026,112200.0,112190.0,0.00182759]
[1760269908828,0.5637026,112200.0,112190.0,0.02347759]
[1760269909270,0.54972518,112200.0,112190.0,0.02347759]
[1760269909495,0.54972518,112200.0,112190.0,0.00182759]
[1760269911975,0.62252287,112200.0,112190.0,0.00182759]
[1760269913499,0.50426476,112200.0,112190.0,0.00182759]
[1760269914517,0.50426476,112200.0,112190.0,0.03973759]
[1760269915281,0.50426476,112200.0,112190.0,0.00182759]
[1760269918063,0.50426476,112200.0,112190.0,0.07460759]
[1760269918464,0.50426476,112200.0,112190.0,0.03973759]
[1760269919273,0.50426476,112200.0,112190.0,0.07460759]
[1760269919428,0.50426476,112200.0,112190.0,0.03973759]
[1760269919905,0.50426476,112200.0,112190.0,0.02347759]
[1760269920029,0.50426476,112200.0,112190.0,0.07460759]
[1760269920231,0.50426476,112200.0,112190.0,0.03973759]
[1760269930327,0.50426476,112200.0,112190.0,0.01808759]
[1760269930530,0.50426476,112200.0,112190.0,0.00182759]
[1760269932640,0.50426476,112200.0,112190.0,0.02419759]
[1760269933980,0.50426476,112200.0,112190.0,0.04219759]
[1760269936204,0.50426476,112200.0,112190.0,0.00182759]
[1760269942058,0.539381,112200.0,112190.0,0.00182759]
[1760269942658,0.52354754,112200.0,112190.0,0.00182759]
[1760269943776,0.50426476,112200.0,112190.0,0.00182759]
[1760269951026,0.52354339,112200.0,112190.0,0.00182759]
[1760269970221,0.52354339,112200.0,112190.0,0.65317959]
[1760269981753,5.52354339,112200.0,112190.0,0.65317959]
[1760269982931,5.61226273,112200.0,112190.0,0.65317959]
[1760269983491,5.52354339,112200.0,112190.0,0.65317959]
[1760269984744,5.54758042,112200.0,112190.0,0.65317959]
[1760269985795,0.51828489,112180.0,112170.0,0.03748]
[1760269985999,0.51833111,112160.0,112150.0,0.03748]
[1760269986206,0.51833111,112160.0,112150.0,0.03756984]
[1760269986597,0.56379883,112160.0,112150.0,0.03756984]
[1760269986797,0.58305752,112160.0,112150.0,0.03756984]
[1760269987321,0.56379883,112160.0,112150.0,0.03756984]
[1760269989309,0.56479883,112160.0,112150.0,0.03756984]
[1760269989804,5.22479883,112160.0,112150.0,0.03756984]
[1760269991425,5.21081653,112160.0,112150.0,0.03756984]
[1760269991860,5.21081653,112160.0,112150.0,0.0398882]
[1760269994870,5.22480053,112160.0,112150.0,0.0398882]
[1760269995721,5.56480053,112160.0,112150.0,0.0398882]
[1760269996254,5.58397962,112160.0,112150.0,0.0398882]
[1760269996905,0.17836439,112130.0,112120.0,0.01661]
[1760269997106,0.17836439,112130.0,112120.0,0.07699209]
[1760269997701,0.205191,112130.0,112120.0,0.07699209]
[1760269998057,0.205191,112130.0,112120.0,0.07899209]
[1760269999735,0.22262218,112130.0,112120.0,0.07899209]
[1760270002541,0.22262218,112130.0,112120.0,0.08073163]
[1760270003408,0.22262218,112130.0,112120.0,0.11303163]
[1760270008698,0.22262218,112130.0,112120.0,0.08073163]
[1760270008901,0.22262218,112130.0,112120.0,0.05833163]
[1760270009036,0.22262218,112130.0,112120.0,0.04172163]